bitfinex-derivatives/quotes_SOLF0:USTF0_20260107
["timestamp","ask_amount","ask_price","bid_price","bid_amount"]
[1767778070717,0.05429868,138.04,137.98,0.30919172]
[1767778070917,3.7853513,138.08,137.99,0.30919172]
[1767778071112,5.33615183,138.07,137.99,0.30919172]
[1767778071422,5.33615183,138.06,137.99,0.30919172]
[1767778071717,5.33615183,138.05,137.99,0.30919172]
[1767778071923,7.78388085,138.09,137.99,0.30919172]
[1767778072123,5.33499906,138.08,137.99,0.30919172]
[1767778072322,5.33499906,138.07,138.01,0.05042793]
[1767778072525,5.33499906,138.06,138.01,0.35961965]
[1767778072717,6.5216,138.11,138.01,0.35961965]
[1767778072919,5.33441348,138.1,138.02,0.30919172]
[1767778073120,5.33441348,138.09,138.02,0.30919172]
[1767778073317,6.5207,138.13,138.02,0.30919172]
[1767778073520,5.33221312,138.12,138.05,0.04566743]
[1767778073819,5.33221312,138.11,138.05,0.04566743]
[1767778074024,5.33221312,138.11,138.02,0.30919172]
[1767778074225,5.33221312,138.11,138.07,0.04934271]
[1767778074519,11.85381312,138.11,138.02,6.83459172]
[1767778074723,5.33221312,138.1,138.02,6.83459172]
[1767778074922,5.33221312,138.09,138.02,6.83459172]
[1767778075220,6.5216,138.11,138.02,6.83459172]
[1767778075421,5.32027868,138.1,138.02,6.83459172]
[1767778075724,6.5216,138.11,138.02,6.83459172]
[1767778075926,5.31844459,138.1,137.98,6.83649172]
[1767778076127,3.7853513,138.08,137.96,0.30919172]
[1767778076425,0.05420238,138.05,137.97,85.64919172]
[1767778076817,0.05420238,138.05,137.97,0.30919172]
[1767778077125,0.05420238,138.05,138.0,0.0487573]
[1767778081124,0.05420238,138.05,137.95,6.5288]
[1767778081324,5.31773025,138.04,137.95,6.5288]
[1767778081619,3.7853513,138.05,137.95,6.5288]
[1767778081822,5.31954017,138.04,137.95,6.5288]
[1767778082014,3.7853513,138.05,137.95,6.5288]
[1767778082216,6.5255,138.03,137.94,0.30919172]
[1767778082623,0.05186593,138.01,137.94,0.30919172]
[1767778083526,0.05186593,138.01,137.95,6.5286]
[1767778083729,6.5245,138.05,137.96,0.30353131]
[1767778083930,3.7853513,138.06,137.96,0.30353131]
[1767778084124,5.3225886,138.05,137.96,0.30353131]
[1767778084424,101.4475,138.11,137.96,0.30353131]
[1767778084425,105.2488513,138.09,137.96,0.30353131]
[1767778084629,5.32267054,138.08,137.96,0.30353131]
[1767778084926,5.32267054,138.07,137.96,0.30353131]
[1767778085122,5.32267054,138.06,137.96,0.30353131]
[1767778085317,5.32267054,138.05,137.96,0.30353131]
[1767778085518,101.4475,138.11,137.98,0.30947622]
[1767778085714,5.32820435,138.1,137.98,0.30947622]
[1767778085927,5.32820435,138.09,137.98,101.5368]
[1767778086122,7.41170077,138.14,138.03,0.35944661]
[1767778086324,5.32697869,138.13,138.03,0.35944661]
[1767778086623,5.32697869,138.12,138.04,0.30947622]
[1767778087424,5.32697869,138.12,138.07,0.04735481]
[1767778087830,6.5195,138.15,138.07,0.04735481]
[1767778088134,5.32917116,138.14,138.07,0.04735481]
[1767778088334,7.77934119,138.17,138.07,0.35683103]
[1767778088522,5.32640684,138.16,138.07,0.35683103]
[1767778088724,5.32640684,138.15,138.07,0.30947622]
[1767778088923,5.32640684,138.14,138.07,0.30947622]
[1767778089223,7.77934119,138.17,138.1,0.04607376]
[1767778089424,5.32325064,138.16,138.1,0.04607376]
[1767778089628,5.32325064,138.15,138.1,0.04607376]
[1767778089829,7.77934119,138.17,138.1,0.04607376]
[1767778090038,5.323241,138.16,138.1,0.04607376]
[1767778090230,6.5187,138.17,138.1,0.04607376]
[1767778090428,5.31974363,138.16,138.1,0.04607376]
[1767778090623,7.77814442,138.19,138.1,0.04607376]
[1767778090826,5.31980554,138.18,138.09,0.30947622]
[1767778091028,5.31980554,138.17,138.09,0.30947622]
[1767778091334,6.5178,138.19,138.13,0.05331082]
[1767778091932,7.77703032,138.21,138.13,0.05331082]
[1767778092238,5.31583866,138.2,138.13,0.05331082]
[1767778092536,5.31583866,138.19,138.13,0.05331082]
[1767778092737,7.77703032,138.21,138.13,0.05331082]
[1767778092926,5.31106707,138.2,138.13,0.05331082]
[1767778093122,5.31106707,138.19,138.13,0.05331082]
[1767778093329,7.77703032,138.21,138.13,0.05331082]
[1767778093644,5.30669889,138.2,138.13,0.05331082]
[1767778093839,7.77703032,138.21,138.13,0.05331082]
[1767778094139,5.30669889,138.2,138.13,0.05331082]
[1767778094340,7.77703032,138.21,138.13,0.05331082]
[1767778094640,5.30281283,138.2,138.13,0.05331082]
[1767778094840,7.77703032,138.21,138.13,0.05331082]
[1767778095043,5.30281499,138.2,138.13,0.05331082]
[1767778095241,7.77703032,138.21,138.13,0.05331082]
[1767778095442,5.29996895,138.2,138.13,0.05331082]
[1767778095644,7.77703032,138.21,138.13,0.05331082]
[1767778095949,6.5159,138.23,138.13,0.36278704]
[1767778096142,5.30052678,138.22,138.13,0.36278704]
[1767778096337,7.77590217,138.23,138.13,0.30947622]
[1767778096539,5.29687331,138.22,138.13,0.30947622]
[1767778096736,7.77590217,138.23,138.16,0.05483641]
[1767778096935,5.29687124,138.22,138.16,0.05483641]
[1767778097135,7.77590217,138.23,138.16,0.05483641]
[1767778097335,5.29390887,138.22,138.16,0.05483641]
[1767778097539,7.77590217,138.23,138.16,0.05483641]
[1767778097741,5.293417,138.22,138.16,0.05483641]
[1767778097940,7.77590217,138.23,138.16,0.05483641]
[1767778098236,6.5159,138.23,138.16,0.05483641]
[1767778102447,101.3211,138.28,138.17,0.30947622]
[1767778102846,6.5145,138.26,138.17,0.30947622]
[1767778103247,101.3345,138.26,138.17,0.30947622]
[1767778103545,101.3345,138.26,138.14,85.28]
[1767778103546,6.5158,138.23,138.14,0.30947622]
[1767778104748,101.3863,138.19,138.1,0.30947622]
[1767778104951,101.4033,138.17,138.06,0.30947622]
[1767778106046,101.394,138.18,138.06,0.30947622]
[1767778107751,101.4019,138.17,138.06,0.30947622]
[1767778108252,6.5198,138.15,138.06,0.30947622]
[1767778110349,6.5198,138.15,138.0,21.75]
[1767778110350,101.4372,138.12,138.0,0.30947622]
[1767778110652,101.48482457,138.12,138.0,0.30947622]
[1767778110850,101.4372,138.12,138.0,0.30947622]
[1767778111655,6.5218,138.11,138.0,0.30947622]
[1767778111954,0.05520709,138.07,138.0,0.30947622]
[1767778113250,107.9545,138.13,138.01,0.30721042]
[1767778114758,5.27567877,138.12,138.01,0.30721042]
[1767778115057,101.4339,138.13,138.01,0.30721042]
[1767778115255,6.524,138.06,137.97,0.30721042]
[1767778116559,0.05484819,138.03,138.0,0.04649553]
[1767778120759,0.05484819,138.03,137.92,0.30721042]
[1767778121259,101.4979,138.04,137.92,0.30721042]
[1767778121462,5.26572459,138.03,137.92,0.30721042]
[1767778121659,101.4979,138.04,137.92,0.30721042]
[1767778121660,6.5258,138.02,137.92,0.30721042]
[1767778122064,0.05299161,137.99,137.92,0.30721042]
[1767778122960,6.5248,138.04,137.93,0.30721042]
[1767778123162,6.5248,138.04,137.95,0.30721042]
[1767778124764,6.5238,138.06,137.95,0.30721042]
[1767778125363,6.5245,138.05,137.95,6.83581042]
[1767778126061,101.5287,138.0,137.91,0.30721042]
[1767778127160,6.5273,137.99,137.91,0.30721042]
[1767778127859,6.5263,138.01,137.91,0.30721042]
[1767778128959,6.5253,138.03,137.92,6.83751042]
[1767778129161,6.5253,138.03,137.95,0.0554909]
[1767778130769,6.5278,137.98,137.89,6.83901042]
[1767778130971,6.5278,137.98,137.89,0.30721042]
[1767778131163,107.67056268,138.01,137.89,0.30721042]
[1767778132674,6.5268,138.0,137.89,6.83871042]
[1767778132872,6.5268,138.0,137.9,0.30721042]
[1767778133068,6.5259,138.02,137.91,6.83781042]
[1767778133370,6.5259,138.02,137.92,0.30721042]
[1767778135279,101.5297,138.0,137.88,0.30721042]
[1767778135674,209.19576268,138.01,137.88,0.30721042]
[1767778136671,6.5268,138.0,137.89,6.83871042]
[1767778137578,6.5268,138.0,137.9,0.30721042]
[1767778138975,6.5259,138.02,137.91,0.30721042]
[1767778140677,6.5259,138.02,137.92,0.32087232]
[1767778140879,101.5187,138.01,137.89,0.32087232]
[1767778142675,6.5272,137.99,137.9,6.531]
[1767778144182,6.5272,137.99,137.9,6.85635143]
[1767778144581,6.5277,137.98,137.88,6.85735143]
[1767778144778,6.5277,137.98,137.89,0.32535143]
[1767778145278,105.3399892,137.97,137.87,0.32535143]
[1767778145578,105.3399892,137.97,137.84,0.32535143]
[1767778146678,6.5292,137.95,137.86,6.533]
[1767778146878,6.5292,137.95,137.86,6.85835143]
[1767778147977,6.5287,137.96,137.87,6.85785143]
[1767778148181,101.5362,137.99,137.88,0.32535143]
[1767778148494,6.5285,137.96,137.88,0.32535143]
[1767778149784,6.5301,137.93,137.83,13.62257522]
[1767778149983,6.5301,137.93,137.84,0.32535143]
[1767778151189,6.5305,137.92,137.84,0.32535143]
[1767778151694,105.3548892,137.95,137.84,0.32535143]
[1767778152698,0.04600714,137.91,137.84,0.32535143]
[1767778153793,6.5286,137.96,137.86,0.37443795]
[1767778154297,6.5286,137.96,137.83,115.26927522]
[1767778154298,9.05698698,137.95,137.83,13.62257522]
[1767778154500,5.26829778,137.94,137.83,13.94792665]
[1767778154701,5.26829778,137.93,137.83,13.94792665]
[1767778155001,3.7886892,137.95,137.87,0.05196145]
[1767778155199,5.26725168,137.94,137.87,0.05196145]
[1767778155502,3.7886892,137.98,137.87,0.05196145]
[1767778155701,3.7886892,137.98,137.86,0.32535143]
[1767778155702,5.27316602,137.97,137.86,0.32535143]
[1767778155896,5.27316602,137.96,137.86,0.32535143]
[1767778156101,5.27316602,137.95,137.91,0.05453706]
[1767778156302,3.7886892,137.98,137.91,0.05453706]
[1767778156502,5.2750742,137.97,137.91,0.05453706]
[1767778156703,5.2750742,137.96,137.91,0.05453706]
[1767778157404,0.05408153,137.95,137.91,0.05453706]
[1767778158010,5.27747734,137.94,137.91,0.05453706]
[1767778158301,0.05408153,137.95,137.91,0.05453706]
[1767778158799,0.05408153,137.95,137.86,0.32535143]
[1767778158800,6.73875629,137.94,137.83,115.59562665]
[1767778159008,5.27875629,137.93,137.84,0.32535143]
[1767778159202,5.28270385,137.92,137.84,0.32535143]
[1767778159406,105.3398892,137.97,137.84,0.32535143]
[1767778159605,6.5292,137.95,137.86,6.533]
[1767778159798,105.3398892,137.97,137.85,101.95775143]
[1767778159799,5.28271773,137.94,137.85,101.95775143]
[1767778159994,0.04809814,137.92,137.86,0.32535143]
[1767778160206,10.3169892,137.97,137.87,6.5325]
[1767778160406,5.28684097,137.96,137.88,0.04777932]
[1767778160605,5.28684097,137.95,137.88,0.04777932]
[1767778160908,5.28684097,137.94,137.87,6.5325]
[1767778161107,5.28684097,137.93,137.87,6.5325]
[1767778161409,6.5283,137.97,137.89,0.04930009]
[1767778161599,5.28758734,137.96,137.89,0.04930009]
[1767778161802,11.81658734,137.95,137.89,0.04930009]
[1767778162011,5.28758734,137.94,137.89,0.04930009]
[1767778162309,5.28758734,137.93,137.86,0.32535143]
[1767778162508,6.529,137.95,137.9,0.05290628]
[1767778162709,5.28872946,137.94,137.9,0.05290628]
[1767778162912,5.28872946,137.93,137.9,0.05290628]
[1767778163101,5.28850179,137.92,137.83,13.62257522]
[1767778163306,0.04643367,137.94,137.84,0.32535143]
[1767778163606,5.28936213,137.93,137.84,0.32535143]
[1767778163802,5.28936213,137.92,137.84,0.32535143]
[1767778164009,105.3463892,137.96,137.84,0.32535143]
[1767778164201,5.28939259,137.95,137.84,0.32535143]
[1767778164405,5.28939259,137.94,137.84,0.32535143]
[1767778164603,5.28939259,137.93,137.85,6.5334]
[1767778164805,5.28939259,137.92,137.85,6.85875143]
[1767778165004,6.5292,137.95,137.85,6.85875143]
[1767778165307,5.28377522,137.94,137.85,6.85875143]
[1767778165509,5.28377522,137.93,137.85,6.85875143]
[1767778165709,5.28377522,137.92,137.85,6.85875143]
[1767778165904,5.28377522,137.91,137.85,6.85875143]
[1767778166212,6.5292,137.95,137.85,6.85875143]
[1767778166426,5.28529501,137.94,137.85,6.85875143]
[1767778166708,6.7009645,137.93,137.85,6.85875143]
[1767778166910,5.28529501,137.92,137.86,0.32535143]
[1767778167104,1.41566949,137.95,137.86,0.32535143]
[1767778167305,5.28571023,137.94,137.88,0.32535143]
[1767778167612,1.41566949,137.97,137.88,0.32535143]
[1767778167806,5.28624978,137.96,137.88,0.32535143]
[1767778168007,1.41566949,137.93,137.84,0.32535143]
[1767778168208,5.28604081,137.92,137.85,0.32535143]
[1767778168411,1.41566949,137.93,137.85,0.32535143]
[1767778169210,1.41566949,137.95,137.85,0.32535143]
[1767778169398,5.28882487,137.94,137.87,6.85785143]
[1767778169600,1.41566949,137.97,137.88,0.32535143]
[1767778170201,1.41566949,137.97,137.89,6.5316]
[1767778170407,6.5266,138.0,137.89,0.32535143]
[1767778170705,1.41566949,137.99,137.9,0.32535143]
[1767778170910,1.41566949,137.99,137.91,0.32535143]
[1767778171415,1.41566949,138.01,137.91,0.32535143]
[1767778172206,1.41566949,138.01,137.93,6.85161986]
[1767778172719,6.5249,138.04,137.93,0.32191986]
[1767778173416,6.5249,138.04,137.95,6.5288]
[1767778173803,101.4624,138.09,137.97,0.32191986]
[1767778174009,105.23403326,138.11,137.98,6.84911986]
[1767778174307,6.5221,138.1,137.99,101.85321986]
[1767778174506,206.65653326,138.13,138.0,6.84801986]
[1767778175016,6.5223,138.1,138.0,6.84801986]
[1767778175923,3.78693326,138.06,137.93,101.89841986]
[1767778176121,101.4913,138.05,137.93,0.32191986]
[1767778176420,6.5251,138.04,137.94,0.32191986]
[1767778176616,6.5251,138.04,137.98,0.05302883]
[1767778176816,0.04863542,138.0,137.98,0.05302883]
[1767778177820,0.04863542,138.0,137.94,0.32191986]
[1767778180125,6.5251,138.04,137.95,0.32191986]
[1767778180325,3.78693326,138.05,137.95,0.32191986]
[1767778181230,102.9381,138.04,137.92,0.32191986]
[1767778181411,101.4981,138.04,137.92,0.32191986]
[1767778181723,0.05040003,138.01,137.92,0.32191986]
[1767778182124,101.4981,138.04,137.92,0.32191986]
[1767778182322,101.4981,138.04,137.92,6.85191986]
[1767778182623,0.0525301,137.98,137.92,6.85191986]
[1767778182816,0.0525301,137.98,137.92,0.32191986]
[1767778184120,0.0525301,137.98,137.94,0.0550973]
[1767778188427,0.0525301,137.98,137.87,0.32191986]
[1767778188815,3.78693326,137.99,137.87,0.32191986]
[1767778189519,6.5278,137.98,137.88,6.532]
[1767778189727,0.05496168,137.94,137.88,6.85391986]
[1767778190129,0.05496168,137.94,137.88,0.32191986]
[1767778191430,0.05496168,137.94,137.86,6.533]
[1767778195125,0.05496168,137.94,137.85,0.32191986]
[1767778195329,6.58466168,137.94,137.85,0.32191986]
[1767778195530,3.78693326,137.96,137.85,0.32191986]
[1767778195824,101.5434,137.98,137.87,0.32191986]
[1767778196528,6.5287,137.96,137.87,6.85441986]
[1767778196716,6.5287,137.96,137.88,0.32191986]
[1767778196913,3.78693326,137.99,137.88,0.32191986]
[1767778197716,105.30033326,138.02,137.92,0.05213403]
[1767778198124,105.30033326,138.02,137.9,0.32191986]
[1767778198328,101.5065,138.03,137.91,0.32191986]
[1767778198620,101.4967,138.04,137.95,0.05180869]
[1767778199128,101.4967,138.04,137.94,0.32191986]
[1767778199325,101.4967,138.04,137.98,0.0511663]
[1767778199627,6.5259,138.02,137.98,0.0511663]
[1767778200830,0.05221111,138.01,137.98,0.0511663]
[1767778201229,105.23553326,138.11,137.98,1.79997052]
[1767778201524,202.888,138.12,138.0,0.32196049]
[1767778201726,101.446,138.11,138.01,0.32196049]
[1767778201918,101.4451,138.11,138.01,0.32196049]
[1767778202117,101.4382,138.12,138.01,0.32196049]
[1767778202321,101.4522,138.1,138.01,0.32196049]
[1767778202519,101.4522,138.1,138.05,0.05183995]
[1767778202719,101.4522,138.1,138.01,0.32196049]
[1767778203321,101.4522,138.1,137.98,6.84936049]
[1767778203526,6.5226,138.09,137.98,6.84936049]
[1767778203717,6.5226,138.09,137.99,0.32196049]
[1767778204027,6.5226,138.09,138.02,0.04639816]
[1767778204715,6.5214,138.11,138.02,0.04639816]
[1767778204929,101.4194,138.15,138.02,0.36835865]
[1767778205123,101.4194,138.15,138.02,0.32196049]
[1767778205319,101.4224,138.14,138.02,0.32196049]
[1767778205530,101.4098,138.16,138.07,0.05046626]
[1767778205726,101.3958,138.18,138.07,0.05046626]
[1767778206034,101.3958,138.18,138.05,0.32196049]
[1767778206221,101.4081,138.16,138.05,0.32196049]
[1767778206416,101.4081,138.16,138.11,0.05335141]
[1767778206627,0.04602228,138.13,138.11,0.05335141]
[1767778206828,0.04602228,138.13,138.05,0.32196049]
[1767778207935,0.04602228,138.13,138.02,0.32196049]
[1767778208431,101.4272,138.14,138.02,0.32196049]
[1767778208833,101.4081,138.16,138.07,0.05494365]
[1767778209332,107.55158559,138.17,138.04,0.32196049]
[1767778209724,6.5197,138.15,138.04,6.84626049]
[1767778210122,6.5197,138.15,138.08,0.04753492]
[1767778210827,12.66828559,138.17,138.08,0.04753492]
[1767778211031,6.5187,138.17,138.08,0.04753492]
[1767778211230,6.5187,138.17,138.06,101.80236049]
[1767778211425,6.5177,138.19,138.09,0.32196049]
[1767778211729,101.3647,138.22,138.11,0.05544122]
[1767778211926,101.3714,138.21,138.11,0.05544122]
[1767778212236,101.3726,138.21,138.11,0.32196049]
[1767778212421,101.4198,138.15,138.04,0.32196049]
[1767778212826,6.5205,138.13,138.04,0.32196049]
[1767778213026,0.05457381,138.11,138.01,6.84796049]
[1767778213328,101.50147381,138.11,138.01,0.32196049]
[1767778213532,6.5223,138.1,138.01,0.32196049]
[1767778214335,0.04623467,138.07,138.01,0.32196049]
[1767778215627,0.04623467,138.07,138.02,0.32196049]
[1767778215833,6.521,138.12,138.02,0.32196049]
[1767778216134,6.521,138.12,138.03,0.0551676]
[1767778216437,6.5201,138.14,138.03,0.0551676]
[1767778216628,6.5201,138.14,138.04,0.32196049]
[1767778216822,192.91098559,138.17,138.05,0.32196049]
[1767778216823,107.55098559,138.17,138.05,0.32196049]
[1767778217024,107.55098559,138.17,138.08,0.04897389]
[1767778217230,6.5192,138.16,138.08,0.04897389]
[1767778217427,101.47914498,138.14,138.01,101.83736049]
[1767778217829,6.5206,138.13,138.02,0.32196049]
[1767778218029,101.4332,138.13,138.02,0.32196049]
[1767778218429,6.5221,138.1,138.02,0.32196049]
[1767778218627,6.5221,138.1,137.99,6.84896049]
[1767778218830,0.05274211,138.09,137.99,6.84896049]
[1767778219032,6.57534211,138.09,137.99,0.32196049]
[1767778219238,6.5226,138.09,137.99,0.32196049]
[1767778219540,0.05291306,138.05,137.99,0.32196049]
[1767778219835,6.5226,138.09,138.03,0.05254692]
[1767778220728,6.5236,138.07,137.96,6.85036049]
[1767778221128,101.4887,138.05,137.96,0.32196049]
[1767778221335,101.498,138.04,137.93,0.32196049]
[1767778222137,0.05224259,138.0,137.93,0.32196049]
[1767778222730,0.05224259,138.0,137.9,0.32196049]
[1767778223131,101.5139,138.02,137.9,0.32196049]
[1767778223132,101.5194,138.01,137.9,0.32196049]
[1767778223333,101.5194,138.01,137.87,101.6202]
[1767778223334,101.5265,138.0,137.87,101.6202]
[1767778223540,101.5416,137.98,137.85,101.95766049]
[1767778223739,6.528,137.97,137.85,6.85526049]
[1767778223934,0.04955036,137.95,137.85,0.32196049]
[1767778224441,101.5552,137.96,137.85,0.32196049]
[1767778224641,0.05050955,137.91,137.85,0.32196049]
[1767778226444,0.05050955,137.91,137.83,13.62257522]
[1767778226835,0.05050955,137.91,137.83,13.94453571]
[1767778228841,0.05050955,137.91,137.84,0.32196049]
[1767778229139,0.05050955,137.91,137.83,13.62257522]
[1767778230150,108.1339,137.9,137.83,13.62257522]
[1767778230339,0.05050955,137.91,137.83,13.62257522]
[1767778230535,101.573,137.94,137.83,13.94453571]
[1767778230941,0.05499361,137.88,137.83,13.94453571]
[1767778231141,406.1416,137.99,137.86,0.32196049]
[1767778231142,101.539,137.99,137.86,0.32196049]
[1767778231344,101.5621,137.95,137.87,0.32196049]
[1767778231542,101.5621,137.95,137.84,0.36798471]
[1767778231543,101.574,137.94,137.84,0.36798471]
[1767778231849,108.1071,137.93,137.84,0.32196049]
[1767778232150,101.5849,137.92,137.83,13.62257522]
[1767778232351,101.5938,137.91,137.83,13.62257522]
[1767778232549,101.5938,137.91,137.87,0.05480148]
[1767778232748,6.5309,137.91,137.83,13.62257522]
[1767778233054,0.05222107,137.88,137.83,13.62257522]
[1767778233248,6.5296,137.94,137.84,0.33054321]
[1767778234146,1.46,137.94,137.83,13.47584743]
[1767778234444,101.6013,137.9,137.83,13.47584743]
[1767778235252,6.532,137.89,137.83,13.47584743]
[1767778235852,114.26678559,137.92,137.83,13.47584743]
[1767778236357,0.04901763,137.89,137.83,13.47584743]
[1767778238158,0.04901763,137.89,137.83,13.80639064]
[1767778238762,199.67618559,137.96,137.84,0.33054321]
[1767778238954,107.70728559,137.96,137.85,0.05276648]
[1767778239269,193.13758559,138.0,137.88,0.33054321]
[1767778239465,101.5702,137.94,137.83,13.47584743]
[1767778239967,6.5306,137.92,137.83,13.47584743]
[1767778240355,6.5311,137.91,137.87,0.05345727]
[1767778240552,6.5311,137.91,137.83,13.47584743]
[1767778240756,0.04689934,137.89,137.83,13.47584743]
[1767778243651,0.04689934,137.89,137.83,13.80639064]
[1767778244057,101.65839934,137.89,137.8,0.33054321]
[1767778244256,0.04689934,137.89,137.8,0.33054321]
[1767778244460,101.5954,137.91,137.8,0.33054321]
[1767778245262,0.0478994,137.87,137.8,0.33054321]
[1767778248063,0.0478994,137.87,137.81,0.33054321]
[1767778249163,0.0478994,137.87,137.77,6.86764321]
[1767778249364,0.0478994,137.87,137.77,0.33054321]
[1767778249565,101.6189,137.88,137.77,0.33054321]
[1767778249960,0.04793569,137.83,137.77,0.33054321]
[1767778250855,0.04793569,137.83,137.72,0.33054321]
[1767778251363,101.611,137.89,137.76,0.33054321]
[1767778251569,101.603,137.9,137.77,0.33054321]
[1767778251862,6.5317,137.9,137.81,0.04717826]
[1767778252065,6.5317,137.9,137.81,0.37772147]
[1767778252261,107.74508559,137.91,137.81,0.33054321]
[1767778253067,107.74508559,137.91,137.85,0.04868622]
[1767778253768,6.532,137.89,137.85,0.04868622]
[1767778254569,101.6317,137.86,137.75,0.33054321]
[1767778255372,6.5344,137.84,137.75,0.33054321]
[1767778255764,0.05451623,137.82,137.75,0.33054321]
[1767778256769,0.05451623,137.82,137.76,0.33054321]
[1767778256972,101.5989,137.9,137.76,0.33054321]
[1767778257473,101.5989,137.9,137.78,0.38247373]
[1767778257671,101.5989,137.9,137.78,0.33054321]
[1767778257862,6.5325,137.88,137.78,0.33054321]
[1767778258465,6.5315,137.9,137.83,0.04960394]
[1767778260270,6.5306,137.92,137.83,0.04960394]
[1767778260671,101.623,137.87,137.76,0.32341302]
[1767778261069,101.6369,137.85,137.76,0.32341302]
[1767778261776,6.5344,137.84,137.76,0.32341302]
[1767778261980,0.04587978,137.82,137.76,0.32341302]
[1767778262477,107.74908559,137.9,137.77,0.32233947]
[1767778262683,101.6065,137.89,137.78,0.36826008]
[1767778263177,101.6065,137.89,137.78,0.32233947]
[1767778263582,6.5331,137.87,137.78,0.32233947]
[1767778263767,101.6728,137.8,137.7,0.32233947]
[1767778264168,6.5363,137.8,137.7,0.32233947]
[1767778264862,3.8005512,137.81,137.7,0.32233947]
[1767778265074,0.04750708,137.76,137.7,0.32233947]
[1767778265268,3.8005512,137.84,137.7,0.32233947]
[1767778265479,3.8005512,137.81,137.74,0.05314531]
[1767778265675,101.7052,137.76,137.66,0.32233947]
[1767778265973,105.4918512,137.78,137.66,0.32233947]
[1767778266174,6.5372,137.78,137.67,0.32233947]
[1767778266774,10.3367512,137.8,137.69,0.32233947]
[1767778266971,10.3367512,137.8,137.7,0.32233947]
[1767778267275,6.5362,137.8,137.7,0.32233947]
[1767778267481,6.5362,137.8,137.74,0.04973979]
[1767778268178,101.6601,137.82,137.74,0.04973979]
[1767778268179,108.1954,137.82,137.74,0.04973979]
[1767778270284,6.5353,137.82,137.74,0.04973979]
[1767778270676,6.5343,137.84,137.74,0.04973979]
[1767778271183,6.5343,137.84,137.73,0.32233947]
[1767778271383,101.6579,137.82,137.7,0.32233947]
[1767778271681,0.05089295,137.8,137.7,0.32233947]
[1767778272088,101.6553,137.83,137.7,0.32233947]
[1767778272690,6.5354,137.82,137.72,0.32233947]
[1767778272879,0.0499744,137.78,137.72,0.32233947]
[1767778273674,6.5354,137.82,137.72,7.9996]
[1767778273876,6.5354,137.82,137.74,0.05278137]
[1767778274077,6.5354,137.82,137.74,0.37512084]
[1767778274483,6.5354,137.82,137.74,0.05278137]
[1767778275382,6.5359,137.81,137.74,0.05278137]
[1767778275781,6.5359,137.81,137.7,0.32233947]
[1767778275995,6.5359,137.81,137.71,0.32233947]
[1767778276181,6.5359,137.81,137.76,0.04883599]
[1767778276785,101.6541,137.83,137.66,0.32233947]
[1767778276786,105.4884512,137.78,137.66,0.32233947]
[1767778276986,3.8005512,137.78,137.66,0.32233947]
[1767778277676,6.5374,137.78,137.69,0.32233947]
[1767778281889,6.5374,137.78,137.64,101.7873]
[1767778281890,101.7106,137.75,137.62,0.32233947]
[1767778282486,101.7106,137.75,137.67,0.04587258]
[1767778282685,6.5396,137.73,137.67,0.04587258]
[1767778283593,6.5396,137.73,137.6,101.8175]
[1767778283594,101.7658,137.68,137.56,0.32233947]
[1767778284183,6.5419,137.68,137.56,0.32233947]
[1767778284494,124.0,137.71,137.59,0.32233947]
[1767778284885,6.5409,137.7,137.59,6.86803947]
[1767778285290,6.5409,137.7,137.6,0.32233947]
[1767778285791,6.5418,137.68,137.57,6.5468]
[1767778286004,101.7543,137.69,137.57,108.71013947]
[1767778286005,3.8005512,137.69,137.57,108.71013947]
[1767778286292,105.5283512,137.73,137.61,0.05021095]
[1767778286591,6.5419,137.68,137.61,0.05021095]
[1767778286789,101.7555,137.69,137.6,0.32233947]
[1767778287293,101.7555,137.69,137.63,0.05078837]
[1767778287491,101.7618,137.68,137.57,0.32233947]
[1767778287693,101.7706,137.67,137.54,0.32233947]
[1767778287887,101.7763,137.66,137.54,0.32233947]
[1767778288084,6.543,137.66,137.54,6.87043947]
[1767778288585,6.543,137.66,137.55,0.32233947]
[1767778288886,6.5418,137.68,137.56,0.32233947]
[1767778289192,6.5418,137.68,137.59,0.0491607]
[1767778289790,6.5418,137.68,137.57,0.32233947]
[1767778290191,6.541,137.7,137.62,0.04800166]
[1767778290486,3.8005512,137.71,137.62,0.04800166]
[1767778290688,105.5195512,137.74,137.62,0.04800166]
[1767778290888,6.5401,137.72,137.61,6.545]
[1767778291286,6.5391,137.74,137.67,0.04845821]
[1767778292585,6.5372,137.78,137.67,6.92091614]
[1767778293189,6.5372,137.78,137.67,6.87245793]
[1767778293389,6.5372,137.78,137.71,0.05313446]
[1767778295892,6.5372,137.78,137.67,6.56519239]
[1767778296196,0.04712385,137.76,137.69,101.7537]
[1767778296384,3.8005512,137.82,137.7,101.7462]
[1767778296693,101.6468,137.84,137.7,101.7462]
[1767778297089,108.1811,137.84,137.72,6.5395]